fUST/lending_fUST_20260603
["ID","MTS","AMOUNT","RATE_DAILY","PERIOD"]
[423881275,1780469447000,-500.0,0.00015616,2]
[423881277,1780469447000,-500.0,0.00015616,2]
[423881279,1780469447000,-500.0,0.00015616,2]
[423881273,1780469447000,-2241.32,0.00015616,2]
[423881288,1780469447000,-151.79,0.000158,2]
[423881283,1780469447000,-500.0,0.00015616,2]
[423881281,1780469447000,-500.0,0.00015616,2]
[423881290,1780469447000,-500.0,0.0001589,2]
[423881287,1780469447000,-500.0,0.00015616,2]
[423881292,1780469447000,-500.0,0.0001589,2]
[423881285,1780469447000,-500.0,0.00015616,2]
[423881169,1780469447000,-500.0,0.00015068,2]
[423881250,1780469447000,-500.0,0.00015616,2]
[423881246,1780469447000,-500.0,0.00015342,2]
[423881248,1780469447000,-500.0,0.00015342,2]
[423881234,1780469447000,-500.0,0.00015342,2]
[423881168,1780469447000,-320.17,0.00015068,2]
[423881181,1780469447000,-500.0,0.00015342,2]
[423881175,1780469447000,-500.0,0.00015068,2]
[423881179,1780469447000,-290.65726101,0.00015288,3]
[423881177,1780469447000,-187.591409,0.00015068,2]
[423881185,1780469447000,-5003.73,0.00015342,2]
[423881187,1780469447000,-500.0,0.00015342,2]
[423881183,1780469447000,-500.0,0.00015342,2]
[423881189,1780469447000,-268.79199172,0.00015342,2]
[423881191,1780469447000,-500.0,0.00015342,2]
[423881193,1780469447000,-500.0,0.00015342,2]
[423881236,1780469447000,-500.0,0.00015342,2]
[423881196,1780469447000,-500.0,0.00015342,2]
[423881204,1780469447000,-500.0,0.00015342,2]
[423881194,1780469447000,-554.59,0.00015342,2]
[423881202,1780469447000,-500.0,0.00015342,2]
[423881200,1780469447000,-612.07,0.00015342,2]
[423881206,1780469447000,-379.76,0.00015342,2]
[423881208,1780469447000,-1316.24806924,0.00015342,2]
[423881238,1780469447000,-536.67,0.00015342,2]
[423881240,1780469447000,-500.0,0.00015342,2]
[423881244,1780469447000,-500.0,0.00015342,2]
[423881242,1780469447000,-500.0,0.00015342,2]
[423881232,1780469447000,-925.07193076,0.00015342,2]
[423881198,1780469447000,-500.0,0.00015342,2]
[423881299,1780469448000,-500.0,0.0001589,2]
[423881297,1780469448000,-500.0,0.0001589,2]
[423881295,1780469448000,-5003.73,0.0001589,2]
[423881310,1780469448000,-500.0,0.0001589,2]
[423881308,1780469448000,-612.07,0.0001589,2]
[423881312,1780469448000,-81.92755681,0.0001589,2]
[423881306,1780469448000,-554.59,0.0001589,2]
[423881301,1780469448000,-418.83755681,0.0001589,2]
[423881304,1780469448000,-81.16244319,0.0001589,2]
[423881461,1780470111000,-2670.0738311,0.00011388,2]
[423881556,1780470633000,-287.0444795,0.00013699,2]
[423881554,1780470633000,-1000.0,0.00013699,2]
[423881543,1780470633000,-500.0,0.00013698,2]
[423881540,1780470633000,-500.0,0.00013698,2]
[423881541,1780470633000,-500.0,0.00013698,2]
[423881527,1780470633000,-171.0,0.00013096,3]
[423881525,1780470633000,-485.489841,0.00012592,2]
[423881538,1780470633000,-500.0,0.00013698,2]
[423881536,1780470633000,-500.0,0.00013698,2]
[423881533,1780470633000,-502.05715644,0.00013698,2]
[423881523,1780470633000,-300.0,0.0001259,2]
[423881529,1780470633000,-300.0,0.00013357,2]
[423881517,1780470633000,-2983.8729739,0.0001083,2]
[423881521,1780470633000,-1284.9147405,0.00012581,2]
[423881519,1780470633000,-597.0,0.0001258,2]
[423881508,1780470633000,-400.499995,0.0001083,2]
[423881500,1780470633000,-2329.9261689,0.00010722,2]
[423881502,1780470633000,-1615.6270311,0.0001083,2]
[423881558,1780470633000,-377.69552572,0.00013862,2]
[423881531,1780470633000,-300.0,0.00013697,2]
[423881560,1780470633000,-500.0,0.00013871,2]
[423881562,1780470633000,-500.0,0.00013871,2]
[423881590,1780470633000,-500.0,0.00013972,2]
[423881589,1780470633000,-500.0,0.00013972,2]
[423881592,1780470633000,-500.0,0.00013972,2]
[423881587,1780470633000,-500.0,0.00013972,2]
[423881585,1780470633000,-600.0,0.00013971,2]
[423881582,1780470633000,-286.89407664,0.00013971,2]
[423881580,1780470633000,-169.21592336,0.00013971,2]
[423881545,1780470633000,-1494.21,0.00013698,2]
[423881578,1780470633000,-500.0,0.00013971,2]
[423881572,1780470633000,-500.0,0.00013971,2]
[423881574,1780470633000,-500.0,0.00013971,2]
[423881552,1780470633000,-500.0,0.00013698,2]
[423881550,1780470633000,-553.42551227,0.00013698,2]
[423881570,1780470633000,-500.0,0.00013971,2]
[423881568,1780470633000,-500.0,0.0001397,2]
[423881566,1780470633000,-2437.90384586,0.00013872,2]
[423881564,1780470633000,-207.84,0.00013871,2]
[423881548,1780470633000,-500.0,0.00013698,2]
[423881576,1780470633000,-3127.33,0.00013971,2]
[423881598,1780470634000,-500.0,0.00013972,2]
[423881594,1780470634000,-500.0,0.00013972,2]
[423881606,1780470634000,-500.0,0.00014144,2]
[423881596,1780470634000,-1494.21,0.00013972,2]
[423881604,1780470634000,-500.0,0.00014144,2]
[423881608,1780470634000,-37.87408611,0.00014144,2]
[423881602,1780470634000,-500.0,0.00014144,2]
[423881600,1780470634000,-500.0,0.00013972,2]
[423881991,1780470638000,-500.0,0.00014145,2]
[423882002,1780470638000,-566.93374958,0.00014145,2]
[423882001,1780470638000,-566.93374958,0.00014145,2]
[423881994,1780470638000,-451.24349691,0.00014145,2]
[423881993,1780470638000,-566.93374958,0.00014145,2]
[423881996,1780470638000,-566.93374958,0.00014145,2]
[423881999,1780470638000,-566.93374958,0.00014145,2]
[423881998,1780470638000,-566.93374958,0.00014145,2]
[423881995,1780470638000,-566.93374958,0.00014145,2]
[423882003,1780470638000,-566.93374958,0.00014145,2]
[423882000,1780470638000,-566.93374958,0.00014145,2]
[423881992,1780470638000,-500.0,0.00014145,2]
[423881990,1780470638000,-740.86019107,0.00014145,2]
[423881986,1780470638000,-462.12591389,0.00014144,2]
[423881987,1780470638000,-170.79324862,0.00014144,2]
[423881988,1780470638000,-500.0,0.00014144,2]
[423881997,1780470638000,-566.93374958,0.00014145,2]
[423882014,1780470638000,-1149.20438464,0.00014145,2]
[423881989,1780470638000,-439.58272219,0.00014144,2]
[423882004,1780470638000,-566.93374958,0.00014145,2]
[423882023,1780470638000,-3443.90836626,0.00014146,2]
[423882022,1780470638000,-105096.60958313,0.00014146,2]
[423882021,1780470638000,-5029.17032216,0.00014146,2]
[423882024,1780470638000,-712.58951452,0.00014146,2]
[423882018,1780470638000,-1149.20438464,0.00014145,2]
[423882020,1780470638000,-3191.72976468,0.00014146,2]
[423882019,1780470638000,-2458.63431763,0.00014146,2]
[423882009,1780470638000,-566.93374958,0.00014145,2]
[423882005,1780470638000,-566.93374958,0.00014145,2]
[423882011,1780470638000,-566.93374958,0.00014145,2]
[423882008,1780470638000,-566.93374958,0.00014145,2]
[423882006,1780470638000,-566.93374958,0.00014145,2]
[423882010,1780470638000,-566.93374958,0.00014145,2]
[423882007,1780470638000,-566.93374958,0.00014145,2]
[423882012,1780470638000,-566.93374958,0.00014145,2]
[423882015,1780470638000,-1149.20438464,0.00014145,2]
[423882017,1780470638000,-1149.20438464,0.00014145,2]
[423882016,1780470638000,-1149.20438464,0.00014145,2]
[423882013,1780470638000,-566.93374958,0.00014145,2]
[423882166,1780470640000,-2415.87706025,0.00014146,2]
[423882178,1780470640000,-2120.24758729,0.00014146,2]
[423882171,1780470640000,-1941.18335628,0.00014146,2]
[423882559,1780470643000,-500.0,0.00014245,2]
[423882557,1780470643000,-500.0,0.00014244,2]
[423882555,1780470643000,-21634.91449134,0.00014146,2]
[423882643,1780470644000,-3127.33,0.00015067,2]
[423882648,1780470644000,-500.0,0.00015068,2]
[423882645,1780470644000,-500.0,0.00015067,2]
[423882639,1780470644000,-161.64,0.00015,2]
[423882637,1780470644000,-500.0,0.00014967,2]
[423882627,1780470644000,-500.0,0.00014794,2]
[423882626,1780470644000,-1494.21,0.00014794,2]
[423882624,1780470644000,-500.0,0.00014794,2]
[423882652,1780470644000,-500.0,0.00015068,2]
[423882620,1780470644000,-500.0,0.00014793,2]
[423882635,1780470644000,-500.0,0.00014967,2]
[423882641,1780470644000,-500.0,0.00015067,2]
[423882646,1780470644000,-500.0,0.00015068,2]
[423882675,1780470644000,-500.0,0.00015342,2]
[423882658,1780470644000,-514.2937368,0.00015161,2]
[423882677,1780470644000,-500.0,0.00015342,2]
[423882661,1780470644000,-500.0,0.00015241,2]
[423882663,1780470644000,-500.0,0.00015241,2]
[423882660,1780470644000,-10218.6989326,0.00015161,2]
[423882656,1780470644000,-191.796332,0.00015068,2]
[423882654,1780470644000,-500.0,0.00015068,2]
[423882665,1780470644000,-500.0,0.00015341,2]
[423882666,1780470644000,-3127.33,0.00015341,2]
[423882668,1780470644000,-500.0,0.00015341,2]
[423882670,1780470644000,-500.0,0.00015342,2]
[423882671,1780470644000,-500.0,0.00015342,2]
[423882622,1780470644000,-500.0,0.00014794,2]
[423882650,1780470644000,-1494.21,0.00015068,2]
[423882633,1780470644000,-153.67027185,0.000149,2]
[423882570,1780470644000,-399.7,0.00014246,2]
[423882629,1780470644000,-500.0,0.00014794,2]
[423882685,1780470644000,-500.0,0.00015615,2]
[423882561,1780470644000,-500.0,0.00014245,2]
[423882564,1780470644000,-3127.33,0.00014245,2]
[423882562,1780470644000,-202.6582954,0.00014245,2]
[423882566,1780470644000,-500.0,0.00014245,2]
[423882568,1780470644000,-455.77948587,0.00014246,2]
[423882574,1780470644000,-500.0,0.00014246,2]
[423882575,1780470644000,-500.0,0.00014246,2]
[423882572,1780470644000,-500.0,0.00014246,2]
[423882579,1780470644000,-500.0,0.00014246,2]
[423882581,1780470644000,-500.0,0.00014246,2]
[423882583,1780470644000,-500.0,0.00014419,2]
[423882577,1780470644000,-1494.21,0.00014246,2]
[423882585,1780470644000,-500.0,0.00014419,2]
[423882586,1780470644000,-455.25,0.00014518,2]
[423882588,1780470644000,-206.35968131,0.00014519,2]
[423882591,1780470644000,-500.0,0.00014519,2]
[423882594,1780470644000,-3127.33,0.00014519,2]
[423882606,1780470644000,-1494.21,0.0001452,2]
[423882610,1780470644000,-500.0,0.0001452,2]
[423882612,1780470644000,-500.0,0.00014693,2]
[423882598,1780470644000,-500.0,0.0001452,2]
[423882600,1780470644000,-500.0,0.0001452,2]
[423882608,1780470644000,-500.0,0.0001452,2]
[423882602,1780470644000,-500.0,0.0001452,2]
[423882597,1780470644000,-500.0,0.00014519,2]
[423882614,1780470644000,-500.0,0.00014693,2]
[423882616,1780470644000,-500.0,0.00014793,2]
[423882618,1780470644000,-3127.33,0.00014793,2]
[423882631,1780470644000,-152.0,0.00014895,2]
[423882673,1780470644000,-1494.21,0.00015342,2]
[423882693,1780470644000,-583.84,0.00015789,2]
[423882686,1780470644000,-3127.33,0.00015615,2]
[423882734,1780470644000,-3127.33,0.00016437,2]
[423882740,1780470644000,-500.0,0.00016438,2]
[423882738,1780470644000,-500.0,0.00016438,2]
[423882736,1780470644000,-500.0,0.00016437,2]
[423882742,1780470644000,-1494.21,0.00016438,2]
[423882744,1780470644000,-500.0,0.00016438,2]
[423882746,1780470644000,-2437.90384585,0.00016562,2]
[423882748,1780470644000,-500.0,0.00016711,2]
[423882750,1780470644000,-3127.33,0.00016711,2]
[423882752,1780470644000,-500.0,0.00016711,2]
[423882760,1780470644000,-500.0,0.00016712,2]
[423882756,1780470644000,-251.75623697,0.00016712,2]
[423882754,1780470644000,-500.0,0.00016712,2]
[423882732,1780470644000,-500.0,0.00016437,2]
[423882758,1780470644000,-1494.21,0.00016712,2]
[423882762,1780470644000,-1415.0,0.00016786,2]
[423882766,1780470644000,-740.86019105,0.00016844,2]
[423882764,1780470644000,-2206.0,0.00016786,2]
[423882770,1780470644000,-864.0,0.00016905,2]
[423882774,1780470644000,-3127.33,0.00016985,2]
[423882772,1780470644000,-500.0,0.00016985,2]
[423882776,1780470644000,-500.0,0.00016985,2]
[423882778,1780470644000,-500.0,0.00016986,2]
[423882786,1780470644000,-397.0750906,0.00016987,2]
[423882780,1780470644000,-1494.21,0.00016986,2]
[423882788,1780470644000,-185.64328372,0.00017004,2]
[423882782,1780470644000,-618.7,0.00016986,2]
[423882679,1780470644000,-720.0,0.00015368,2]
[423882768,1780470644000,-304.23226631,0.00016857,2]
[423882730,1780470644000,-168.82477552,0.00016215,2]
[423882784,1780470644000,-321.11142452,0.00016987,2]
[423882726,1780470644000,-160.55571226,0.00016199,2]
[423882728,1780470644000,-198.5375453,0.00016199,2]
[423882681,1780470644000,-740.86019105,0.00015494,2]
[423882683,1780470644000,-500.0,0.00015515,2]
[423882687,1780470644000,-500.0,0.00015615,2]
[423882684,1780470644000,-500.0,0.00015515,2]
[423882692,1780470644000,-329.71895306,0.00015616,2]
[423882691,1780470644000,-500.0,0.00015616,2]
[423882696,1780470644000,-500.0,0.00015889,2]
[423882694,1780470644000,-500.0,0.00015789,2]
[423882699,1780470644000,-500.0,0.0001589,2]
[423882688,1780470644000,-500.0,0.00015616,2]
[423882690,1780470644000,-1494.21,0.00015616,2]
[423882689,1780470644000,-500.0,0.00015616,2]
[423882698,1780470644000,-500.0,0.00015889,2]
[423882697,1780470644000,-3127.33,0.00015889,2]
[423882712,1780470644000,-500.0,0.00016163,2]
[423882724,1780470644000,-500.0,0.00016164,2]
[423882695,1780470644000,-380.02286318,0.00015886,2]
[423882722,1780470644000,-1494.21,0.00016164,2]
[423882718,1780470644000,-500.0,0.00016164,2]
[423882708,1780470644000,-201.886,0.00015946,2]
[423882720,1780470644000,-500.0,0.00016164,2]
[423882707,1780470644000,-168.114,0.00015946,2]
[423882705,1780470644000,-444.0,0.00015946,2]
[423882702,1780470644000,-1494.21,0.0001589,2]
[423882700,1780470644000,-500.0,0.0001589,2]
[423882703,1780470644000,-500.0,0.0001589,2]
[423882716,1780470644000,-500.0,0.00016163,2]
[423882714,1780470644000,-3127.33,0.00016163,2]
[423882710,1780470644000,-175.09593384,0.00016063,2]
[423882865,1780470645000,-1494.21,0.00017808,2]
[423882869,1780470645000,-464.71258136,0.00017855,2]
[423882863,1780470645000,-500.0,0.00017808,2]
[423882867,1780470645000,-436.50619151,0.00017855,2]
[423882855,1780470645000,-166.1161052,0.00017745,2]
[423882847,1780470645000,-168.94243976,0.000176,2]
[423882849,1780470645000,-1000.0,0.0001771,5]
[423882854,1780470645000,-282.747494,0.00017719,2]
[423882857,1780470645000,-341.70409236,0.00017807,2]
[423882871,1780470645000,-156.43096566,0.00017855,2]
[423882861,1780470645000,-500.0,0.00017807,2]
[423882873,1780470645000,-642.22284905,0.00017862,2]
[423882896,1780470645000,-427.80084104,0.0001788,2]
[423882877,1780470645000,-408.68035332,0.00017867,2]
[423882881,1780470645000,-174.53441239,0.00017878,2]
[423882879,1780470645000,-412.18801486,0.00017878,2]
[423882893,1780470645000,-431.45709127,0.0001788,2]
[423882887,1780470645000,-383.27935388,0.00017879,2]
[423882885,1780470645000,-401.78604969,0.00017878,2]
[423882889,1780470645000,-556.92985117,0.0001788,2]
[423882883,1780470645000,-312.55240677,0.00017878,2]
[423882890,1780470645000,-420.17662403,0.0001788,2]
[423882894,1780470645000,-178.11754327,0.0001788,2]
[423882908,1780470645000,-1136.89489088,0.00018,2]
[423882912,1780470645000,-158.0,0.00018027,3]
[423882851,1780470645000,-160.198604,0.00017718,2]
[423882875,1780470645000,-794.15018121,0.00017862,2]
[423882859,1780470645000,-3127.33,0.00017807,2]
[423882811,1780470645000,-168.94243976,0.000175,2]
[423882844,1780470645000,-1494.21,0.00017534,2]
[423882910,1780470645000,-166.57887463,0.00018,2]
[423882790,1780470645000,-337.64955105,0.00017004,2]
[423882794,1780470645000,-3127.33,0.00017259,2]
[423882792,1780470645000,-500.0,0.00017259,2]
[423882796,1780470645000,-500.0,0.00017259,2]
[423882799,1780470645000,-1494.21,0.0001726,2]
[423882798,1780470645000,-500.0,0.0001726,2]
[423882801,1780470645000,-160.0,0.00017411,2]
[423882813,1780470645000,-481.66713678,0.00017512,2]
[423882804,1780470645000,-160.0,0.00017411,2]
[423882805,1780470645000,-160.0,0.00017412,2]
[423882817,1780470645000,-156.27620338,0.00017516,2]
[423882821,1780470645000,-204.411552,0.00017522,2]
[423882846,1780470645000,-163.529243,0.00017542,2]
[423882820,1780470645000,-160.0,0.00017522,2]
[423882816,1780470645000,-595.61263591,0.00017512,2]
[423882808,1780470645000,-160.0,0.00017412,2]
[423882823,1780470645000,-248.823104,0.00017522,2]
[423882828,1780470645000,-371.28656744,0.00017529,2]
[423882826,1780470645000,-232.35629068,0.00017529,2]
[423882824,1780470645000,-200.89302484,0.00017527,2]
[423882836,1780470645000,-500.0,0.00017533,2]
[423882838,1780470645000,-3127.33,0.00017533,2]
[423882842,1780470645000,-500.0,0.00017534,2]
[423882832,1780470645000,-506.47432657,0.00017529,2]
[423882840,1780470645000,-500.0,0.00017533,2]
[423882830,1780470645000,-213.90042052,0.00017529,2]
[423882834,1780470645000,-290.14670055,0.00017529,2]
[423882809,1780470645000,-161.0,0.000175,5]
[423882914,1780470645000,-3127.33,0.00018081,2]
[423882954,1780470645000,-824.0,0.000184,2]
[423882900,1780470645000,-350.07627621,0.0001788,2]
[423882902,1780470645000,-580.29340111,0.0001788,2]
[423882982,1780470645000,-1136.89489088,0.000187,2]
[423882989,1780470645000,-1494.21,0.00018904,2]
[423882972,1780470645000,-1494.21,0.0001863,2]
[423882974,1780470645000,-772.28,0.0001863,2]
[423882976,1780470645000,-152.0,0.00018641,7]
[423882978,1780470645000,-152.0,0.00018641,7]
[423882991,1780470645000,-772.28,0.00018904,2]
[423882993,1780470645000,-444.0,0.00018946,2]
[423882997,1780470645000,-531.0,0.00019,2]
[423882995,1780470645000,-185.0,0.00018946,2]
[423882999,1780470645000,-3127.33,0.00019177,2]
[423883000,1780470645000,-300.0,0.00019178,2]
[423883010,1780470645000,-296.744967,0.00019249,2]
[423883006,1780470645000,-729.825657,0.00019182,2]
[423883014,1780470645000,-201.38735,0.00019249,2]
[423883004,1780470645000,-772.28,0.00019178,2]
[423883002,1780470645000,-1494.21,0.00019178,2]
[423883012,1780470645000,-160.0,0.00019249,2]
[423883008,1780470645000,-227.79971,0.00019249,2]
[423883016,1780470645000,-242.7747,0.00019249,2]
[423883018,1780470645000,-2437.90384585,0.00019251,2]
[423883020,1780470645000,-3127.33,0.00019451,2]
[423883026,1780470645000,-151.79,0.000195,2]
[423883028,1780470645000,-740.86019105,0.00019542,2]
[423883022,1780470645000,-1494.21,0.00019452,2]
[423883024,1780470645000,-772.28,0.00019452,2]
[423882970,1780470645000,-181.1,0.0001863,2]
[423882968,1780470645000,-578.955,0.0001863,2]
[423882986,1780470645000,-963.33427357,0.00018738,2]
[423882984,1780470645000,-166.57887463,0.000187,2]
[423882904,1780470645000,-188.79755756,0.0001788,2]
[423882898,1780470645000,-675.29910209,0.0001788,2]
[423882906,1780470645000,-320.12557667,0.0001788,2]
[423882916,1780470645000,-500.0,0.00018081,2]
[423882918,1780470645000,-500.0,0.00018082,2]
[423882921,1780470645000,-1494.21,0.00018082,2]
[423882933,1780470645000,-160.0,0.00018268,2]
[423882925,1780470645000,-1136.89489088,0.000182,2]
[423882923,1780470645000,-740.86019105,0.00018193,2]
[423882931,1780470645000,-992.68772651,0.00018212,2]
[423882929,1780470645000,-802.77856131,0.00018212,2]
[423882987,1780470645000,-3127.33,0.00018903,2]
[423882927,1780470645000,-166.57887463,0.000182,2]
[423882935,1780470645000,-608.188048,0.00018268,2]
[423882938,1780470645000,-3127.33,0.00018355,2]
[423882980,1780470645000,-964.03,0.00018641,2]
[423882966,1780470645000,-3127.33,0.00018629,2]
[423882957,1780470645000,-166.57887463,0.000184,2]
[423882936,1780470645000,-1056.376096,0.00018268,2]
[423882962,1780470645000,-166.57887463,0.000185,2]
[423882958,1780470645000,-824.0,0.000184,2]
[423882964,1780470645000,-1000.0,0.00018595,2]
[423882961,1780470645000,-1136.89489088,0.000185,2]
[423882944,1780470645000,-1494.21,0.00018356,2]
[423882946,1780470645000,-367.940793,0.00018398,2]
[423882942,1780470645000,-500.0,0.00018356,2]
[423882940,1780470645000,-319.03,0.00018355,2]
[423882948,1780470645000,-1136.89489088,0.000184,2]
[423883035,1780470646000,-160.0,0.000196,2]
[423883030,1780470646000,-300.0,0.00019589,3]
[423883034,1780470646000,-400.0,0.000196,3]
[423883039,1780470646000,-2830.373959,0.000196,2]
[423883037,1780470646000,-1495.186979,0.000196,2]
[423883031,1780470646000,-400.0,0.000196,2]
[423883043,1780470646000,-212.925394,0.000196,2]
[423883047,1780470646000,-429903.66748391,0.00019626,2]
[423883045,1780470646000,-265.850788,0.000196,2]
[423883050,1780470646000,-3658.80553173,0.00019626,2]
[423883074,1780470646000,-5962.93333856,0.00019626,2]
[423883108,1780470646000,-307.708,0.00019626,2]
[423883041,1780470646000,-160.0,0.000196,2]
[423883630,1780471375000,209.54,0.0002,120]
[423883689,1780471700000,233.7,8.203e-05,2]
[423883688,1780471700000,233.7,8.203e-05,2]
[423883687,1780471700000,233.7,8.203e-05,2]
[423883690,1780471701000,233.73,8.203e-05,2]
[423883704,1780471832000,-804.67750425,0.00012944,2]
[423883703,1780471832000,-437.94531276,0.00012944,2]
[423883701,1780471832000,-420.24048237,0.00012444,2]
[423883702,1780471832000,-300.0,0.00012943,2]
[423883700,1780471832000,-1139.81420487,0.0001232,2]
[423883699,1780471832000,-5000.0,0.00012197,2]
[423883707,1780471832000,-8839.96582277,0.00012944,2]
[423883809,1780471838000,-500.0,0.00013698,2]
[423883805,1780471838000,-281.01403108,0.00012814,2]
[423883806,1780471838000,-4718.98596892,0.00012814,2]
[423883810,1780471838000,-1000.0,0.00013699,2]
[423883807,1780471838000,-14241.52920992,0.00012944,2]
[423883812,1780471838000,-192829.06671993,0.00013845,2]
[423883811,1780471838000,-62971.58213039,0.00013845,2]
[423883813,1780471838000,-398.97496663,0.00013845,2]
[423883808,1780471838000,-2556.05109664,0.00013598,2]
[423883814,1780471840000,-498.19580677,0.00013845,2]
[423883853,1780471844000,-500.0,0.00014492,2]
[423883865,1780471844000,-653.44809207,0.00015262,2]
[423883856,1780471844000,-500.0,0.00014592,2]
[423883858,1780471844000,-38.74395853,0.00014866,2]
[423883857,1780471844000,-500.0,0.00014766,2]
[423883863,1780471844000,-193.898793,0.00015068,2]
[423883861,1780471844000,-153.67027185,0.000149,2]
[423883859,1780471844000,-461.25604147,0.00014866,2]
[423883860,1780471844000,-153.67027186,0.000149,2]
[423883862,1780471844000,-500.0,0.0001504,2]
[423883875,1780471844000,-175.34,0.00016342,2]
[423883866,1780471844000,-488.61,0.00015314,2]
[423883879,1780471844000,-175.34,0.00016346,2]
[423883869,1780471844000,-500.0,0.00015688,2]
[423883876,1780471844000,-175.34,0.00016344,2]
[423883878,1780471844000,-175.34,0.00016346,2]
[423883870,1780471844000,-500.0,0.00015962,2]
[423883874,1780471844000,-175.34,0.0001634,2]
[423883872,1780471844000,-780.23376788,0.00016327,2]
[423883877,1780471844000,-175.34,0.00016344,2]
[423883864,1780471844000,-500.0,0.0001514,2]
[423883867,1780471844000,-92.48118247,0.00015414,2]
[423883854,1780471844000,-592.56,0.0001452,2]
[423883836,1780471844000,-500.0,0.00013943,2]
[423883851,1780471844000,-500.0,0.00014318,2]
[423883830,1780471844000,-653.44809207,0.00013843,2]
[423883832,1780471844000,-424.17702131,0.00013845,2]
[423883831,1780471844000,-1406.87624183,0.00013845,2]
[423883833,1780471844000,-29893.94724409,0.00013845,2]
[423883835,1780471844000,-500.0,0.00013943,2]
[423883837,1780471844000,-500.0,0.00013943,2]
[423883834,1780471844000,-508.87,0.00013943,2]
[423883839,1780471844000,-382.77575756,0.00013944,2]
[423883838,1780471844000,-500.0,0.00013943,2]
[423883871,1780471844000,-500.0,0.00016236,2]
[423883840,1780471844000,-500.0,0.00013944,2]
[423883852,1780471844000,-502.13571736,0.00014318,2]
[423883845,1780471844000,-286.0,0.00014192,3]
[423883842,1780471844000,-500.0,0.00014043,2]
[423883843,1780471844000,-500.0,0.00014044,2]
[423883841,1780471844000,-500.0,0.00013972,2]
[423883844,1780471844000,-500.0,0.00014044,2]
[423883850,1780471844000,-151.84,0.00014318,2]
[423883846,1780471844000,-500.0,0.00014218,2]
[423883848,1780471844000,-282.21271076,0.00014276,2]
[423883847,1780471844000,-500.0,0.00014246,2]
[423883849,1780471844000,-501.96651957,0.00014317,2]
[423883868,1780471844000,-407.51881753,0.00015414,2]
[423883873,1780471844000,-1775.8173287,0.00016327,2]
[423883891,1780471844000,-160.0,0.00017533,2]
[423883910,1780471844000,-637.43680425,0.000185,2]
[423883908,1780471844000,-512.772,0.000184,2]
[423883912,1780471844000,-152.0,0.00018645,7]
[423883911,1780471844000,-566.34,0.0001863,2]
[423883909,1780471844000,-500.0,0.00018428,2]
[423883913,1780471844000,-152.0,0.00018645,7]
[423883915,1780471844000,-500.0,0.00018702,2]
[423883914,1780471844000,-637.43680425,0.000187,2]
[423883916,1780471844000,-795.0,0.000188,2]
[423883919,1780471844000,-2556.05109658,0.00019056,2]
[423883905,1780471844000,-637.43680425,0.000182,2]
[423883918,1780471844000,-382.11812589,0.00018976,2]
[423883923,1780471844000,-12207.87005368,0.00019279,30]
[423883926,1780471844000,-19629.60863235,0.00019279,30]
[423883924,1780471844000,-543.38155845,0.00019279,30]
[423883921,1780471844000,-300.0,0.00019178,2]
[423883920,1780471844000,-157.0,0.00019123,3]
[423883917,1780471844000,-566.34,0.00018904,2]
[423883925,1780471844000,-361.0,0.00019279,30]
[423883922,1780471844000,-566.34,0.00019178,2]
[423883929,1780471844000,-568.02726802,0.00019279,30]
[423883881,1780471844000,-175.34,0.00016348,2]
[423883927,1780471844000,-9881.11499437,0.00019279,30]